fUST/lending_fUST_20250620
["ID","MTS","AMOUNT","RATE_DAILY","PERIOD"]
[366759684,1750434650446,-517.83,0.00020397,2]
[366759685,1750434650456,-460.0,0.00020397,2]
[366759686,1750434650465,-460.0,0.00020397,2]
[366759687,1750434650475,-460.0,0.00020397,2]
[366759688,1750434650485,-460.0,0.00020397,2]
[366759689,1750434650495,-460.0,0.00020397,2]
[366759690,1750434650505,-460.0,0.00020397,2]
[366759691,1750434650515,-460.0,0.00020397,2]
[366759692,1750434650525,-460.0,0.00020397,2]
[366759693,1750434650539,-460.48,0.00020397,2]
[366759694,1750434650549,-460.0,0.00020397,2]
[366759695,1750434650558,-460.0,0.00020397,2]
[366759696,1750434650568,-678.06,0.00020397,2]
[366759697,1750434650580,-460.0,0.00020397,2]
[366759698,1750434650590,-460.0,0.00020397,2]
[366759699,1750434650600,-1121.3,0.00020397,2]
[366759700,1750434650611,-611.74,0.00020397,2]
[366759701,1750434650622,-460.0,0.00020397,2]
[366759702,1750434650632,-520.04379335,0.00020397,2]
[366759703,1750434650642,-460.0,0.00020397,2]
[366759704,1750434650651,-543.27,0.00020397,2]
[366759705,1750434650661,-617.93,0.00020397,2]
[366759706,1750434650670,-460.0,0.00020397,2]
[366759707,1750434650680,-460.0,0.00020397,2]
[366759708,1750434650689,-460.0,0.00020397,2]
[366759709,1750434650698,-460.0,0.00020397,2]
[366759710,1750434650709,-1032.5,0.00020397,2]
[366759711,1750434650719,-460.0,0.00020397,2]
[366759712,1750434650730,-559.21,0.00020397,2]
[366759713,1750434650740,-864.56,0.00020398,2]
[366759714,1750434650750,-992.41,0.00020398,2]
[366759715,1750434650761,-2253.28,0.00020398,2]
[366759716,1750434650770,-791.08,0.00020398,2]
[366759717,1750434650780,-542.09,0.00020399,2]
[366759718,1750434650791,-460.0,0.00020399,2]
[366759719,1750434650801,-460.0,0.00020399,2]
[366759720,1750434650811,-460.0,0.00020399,2]
[366759721,1750434650821,-460.0,0.00020399,2]
[366759722,1750434650831,-460.0,0.00020399,2]
[366759723,1750434650841,-460.0,0.00020399,2]
[366759724,1750434650851,-207.4,0.00020464,2]
[366759725,1750434650860,-500.0,0.00020468,2]
[366759726,1750434650869,-500.0,0.00020468,2]
[366759727,1750434650880,-1500.0,0.00020468,2]
[366759728,1750434650890,-984.76502817,0.00020468,2]
[366759729,1750434650900,-1500.0,0.00020468,2]
[366759730,1750434650910,-1008.24194417,0.00020468,2]
[366759731,1750434650920,-1500.0,0.00020468,2]
[366759732,1750434650930,-1500.0,0.00020468,2]
[366759733,1750434650940,-160.0,0.00020487,2]
[366759734,1750434650950,-230.06456406,0.00020489,2]
[366759735,1750434650960,-12546.90244252,0.00020489,2]
[366759736,1750434650971,-523.92420239,0.00020489,2]
[366759737,1750434650981,-846.08887863,0.00020489,2]
[366759738,1750434650991,-836.27303475,0.00020489,2]
[366759739,1750434651001,-160.0,0.00020489,2]
[366759740,1750434651011,-160.0,0.00020489,2]
[366759741,1750434651020,-160.0,0.00020489,2]
[366759742,1750434651030,-160.0,0.00020489,2]
[366759743,1750434651039,-424.85694595,0.00020489,2]
[366759744,1750434651049,-213.51557418,0.00020489,2]
[366759745,1750434651059,-160.0,0.00020489,2]
[366759746,1750434651069,-500.0,0.00020547,7]
[366759747,1750434651080,-500.0,0.00020548,2]
[366759748,1750434651090,-500.0,0.00020548,2]
[366759749,1750434651100,-500.0,0.00020548,2]
[366759750,1750434651110,-500.0,0.00020548,2]
[366759751,1750434651120,-401.56641533,0.00020548,2]
[366759752,1750434651131,-255.243,0.00020576,2]
[366759753,1750434651141,-75037.34750779,0.00020597,2]
[366759754,1750434651151,-652.27,0.000206,2]
[366759755,1750434651161,-75601.21,0.000206,2]
[366759756,1750434651171,-767.24,0.00020668,2]
[366759757,1750434651181,-1824.29,0.00020668,2]
[366759758,1750434651190,-1494.94,0.00020668,2]
[366759759,1750434651199,-460.0,0.00020668,2]
[366759760,1750434651210,-460.0,0.00020668,2]
[366759761,1750434651219,-1381.71,0.00020668,2]
[366759762,1750434651228,-460.0,0.00020668,2]
[366759763,1750434651238,-1510.33,0.00020669,2]
[366759764,1750434651248,-1727.98,0.00020669,2]
[366759765,1750434651258,-518.78,0.00020669,2]
[366759766,1750434651268,-460.0,0.00020669,2]
[366759767,1750434651278,-763.9,0.00020669,2]
[366759768,1750434651287,-839.66,0.00020669,2]
[366759769,1750434651296,-1294.25,0.00020669,2]
[366759770,1750434651306,-460.0,0.00020669,2]
[366759771,1750434651315,-461.37,0.00020669,2]
[366759772,1750434651325,-460.0,0.00020669,2]
[366759773,1750434651335,-460.0,0.00020669,2]
[366759774,1750434651344,-460.0,0.00020669,2]
[366759775,1750434651354,-460.0,0.00020669,2]
[366759776,1750434651364,-460.0,0.00020669,2]
[366759777,1750434651373,-460.0,0.00020669,2]
[366759778,1750434651384,-460.0,0.00020671,2]
[366759779,1750434651393,-460.0,0.00020671,2]
[366759780,1750434651403,-460.0,0.00020671,2]
[366759781,1750434651412,-460.0,0.00020671,2]
[366759782,1750434651422,-460.0,0.00020671,2]
[366759783,1750434651432,-400.66727488,0.00020671,2]
[366759784,1750434651441,-524.7,0.00020671,2]
[366759785,1750434651451,-517.83,0.00020671,2]
[366759786,1750434651460,-460.0,0.00020671,2]
[366759787,1750434651469,-460.0,0.00020671,2]
[366759788,1750434651479,-460.0,0.00020671,2]
[366759789,1750434651491,-460.0,0.00020671,2]
[366759790,1750434651501,-460.48,0.00020671,2]
[366759791,1750434651510,-460.0,0.00020671,2]
[366759792,1750434651520,-460.0,0.00020671,2]
[366759793,1750434651532,-678.06,0.00020671,2]
[366759794,1750434651542,-463.34,0.00020671,2]
[366759795,1750434651552,-460.0,0.00020671,2]
[366759796,1750434651561,-1121.3,0.00020671,2]
[366759797,1750434651571,-611.74,0.00020671,2]
[366759798,1750434651580,-460.0,0.00020671,2]
[366759799,1750434651591,-460.0,0.00020671,2]
[366759800,1750434651601,-617.93,0.00020671,2]
[366759801,1750434651612,-460.0,0.00020671,2]
[366759802,1750434651622,-460.0,0.00020671,2]
[366759803,1750434651631,-460.0,0.00020671,2]
[366759804,1750434651641,-460.0,0.00020671,2]
[366759805,1750434651651,-1032.5,0.00020671,2]
[366759806,1750434651660,-460.0,0.00020671,2]
[366759807,1750434651669,-559.21,0.00020671,2]
[366759808,1750434651679,-864.56,0.00020672,2]
[366759809,1750434651688,-992.41,0.00020672,2]
[366759810,1750434651697,-2253.28,0.00020672,2]
[366759811,1750434651707,-791.08,0.00020672,2]
[366759812,1750434651717,-460.0,0.00020673,2]
[366759813,1750434651860,-460.0,0.00020673,2]
[366759814,1750434651870,-460.0,0.00020673,2]
[366759815,1750434651880,-160.0,0.00020765,2]
[366759816,1750434651890,-458.0,0.00020825,2]
[366759817,1750434651901,-879.52236616,0.00020854,2]
[366759818,1750434651911,-458.0,0.00020908,2]
[366759819,1750434651921,-767.24,0.00020942,2]
[366759820,1750434651930,-1824.29,0.00020942,2]
[366759821,1750434651940,-1494.94,0.00020942,2]
[366759822,1750434651950,-460.0,0.00020942,2]
[366759823,1750434651960,-460.0,0.00020942,2]
[366759824,1750434651970,-1381.71,0.00020942,2]
[366759825,1750434651979,-460.0,0.00020942,2]
[366759826,1750434651989,-1510.33,0.00020943,2]
[366759827,1750434651998,-1727.98,0.00020943,2]
[366759828,1750434652008,-518.78,0.00020943,2]
[366759829,1750434652018,-460.0,0.00020943,2]
[366759830,1750434652028,-763.9,0.00020943,2]
[366759831,1750434652038,-839.66,0.00020943,2]
[366759832,1750434652047,-1294.25,0.00020943,2]
[366759833,1750434652056,-608.63,0.00020943,2]
[366759834,1750434652065,-460.0,0.00020943,2]
[366759835,1750434652075,-460.0,0.00020943,2]
[366759836,1750434652085,-604.13,0.00020943,2]
[366759837,1750434652094,-460.0,0.00020943,2]
[366759838,1750434652104,-460.0,0.00020943,2]
[366759839,1750434652113,-460.0,0.00020943,2]
[366759840,1750434652123,-460.0,0.00020945,2]
[366759841,1750434652133,-460.0,0.00020945,2]
[366759842,1750434652143,-460.0,0.00020945,2]
[366759843,1750434652153,-517.83,0.00020945,2]
[366759844,1750434652163,-460.0,0.00020945,2]
[366759845,1750434652173,-460.0,0.00020945,2]
[366759846,1750434652182,-459.45,0.00020945,2]
[366759847,1750434652192,-460.48,0.00020945,2]
[366759848,1750434652201,-678.06,0.00020945,2]
[366759849,1750434652211,-460.0,0.00020945,2]
[366759850,1750434652221,-1121.3,0.00020945,2]
[366759851,1750434652230,-611.74,0.00020945,2]
[366759852,1750434652240,-460.0,0.00020945,2]
[366759853,1750434652249,-460.0,0.00020945,2]
[366759854,1750434652259,-617.93,0.00020945,2]
[366759855,1750434652269,-460.0,0.00020945,2]
[366759856,1750434652278,-460.0,0.00020945,2]
[366759857,1750434652288,-298.36052856,0.00020945,2]
[366759858,1750434652298,-460.0,0.00020945,2]
[366759859,1750434652307,-1032.5,0.00020945,2]
[366759860,1750434652317,-460.0,0.00020945,2]
[366759861,1750434652327,-559.21,0.00020945,2]
[366759862,1750434652337,-864.56,0.00020946,2]
[366759863,1750434652347,-992.41,0.00020946,2]
[366759864,1750434652358,-2253.28,0.00020946,2]
[366759865,1750434652368,-791.08,0.00020946,2]
[366759866,1750434652378,-519.86,0.00020947,2]
[366759867,1750434652388,-460.0,0.00020947,2]
[366759868,1750434652397,-1000.0,0.00021,2]
[366759869,1750434652407,-151.0,0.00021,2]
[366759870,1750434652416,-458.0,0.00021012,2]
[366759871,1750434652426,-1897.96671542,0.00021016,2]
[366759872,1750434652435,-2000.0,0.00021016,2]
[366759873,1750434652446,-500.0,0.00021016,2]
[366759874,1750434652456,-1500.0,0.00021016,2]
[366759875,1750434652466,-420.0,0.00021024,2]
[366759876,1750434652476,-420.0,0.00021025,2]
[366759877,1750434652486,-420.0,0.00021025,2]
[366759878,1750434652495,-420.0,0.00021026,2]
[366759879,1750434652505,-500.0,0.00021095,8]
[366759880,1750434652515,-1680.0,0.00021126,2]
[366759881,1750434652526,-458.0,0.00021141,2]
[366759882,1750434652538,-458.0,0.00021203,2]
[366759883,1750434652548,-767.24,0.00021216,2]
[366759884,1750434652558,-1824.29,0.00021216,2]
[366759885,1750434652567,-1494.94,0.00021216,2]
[366759886,1750434652578,-460.0,0.00021216,2]
[366759887,1750434652587,-460.0,0.00021216,2]
[366759888,1750434652597,-1381.71,0.00021216,2]
[366759889,1750434652607,-460.0,0.00021216,2]
[366759890,1750434652617,-1510.33,0.00021217,2]
[366759891,1750434652628,-1727.98,0.00021217,2]
[366759892,1750434652638,-518.78,0.00021217,2]
[366759893,1750434652648,-763.9,0.00021217,2]
[366759894,1750434652657,-839.66,0.00021217,2]
[366759895,1750434652667,-1294.25,0.00021217,2]
[366759896,1750434652676,-460.0,0.00021217,2]
[366759897,1750434652686,-597.29,0.00021217,2]
[366759898,1750434652696,-460.0,0.00021217,2]
[366759899,1750434652705,-460.0,0.00021217,2]
[366759900,1750434652715,-460.0,0.00021217,2]
[366759901,1750434652725,-460.0,0.00021219,2]
[366759902,1750434652736,-517.83,0.00021219,2]
[366759903,1750434652746,-460.0,0.00021219,2]
[366759904,1750434652755,-460.48,0.00021219,2]
[366759905,1750434652765,-678.06,0.00021219,2]
[366759906,1750434652775,-460.0,0.00021219,2]
[366759907,1750434652785,-1121.3,0.00021219,2]
[366759908,1750434652796,-611.74,0.00021219,2]
[366759909,1750434652805,-460.0,0.00021219,2]
[366759910,1750434652815,-460.0,0.00021219,2]
[366759911,1750434652825,-617.93,0.00021219,2]
[366759912,1750434652835,-460.0,0.00021219,2]
[366759913,1750434652844,-575.71113709,0.00021219,2]
[366759914,1750434652853,-460.0,0.00021219,2]
[366759915,1750434652863,-1032.5,0.00021219,2]
[366759916,1750434652872,-559.21,0.00021219,2]
[366759917,1750434652884,-864.56,0.0002122,2]
[366759918,1750434652894,-992.41,0.0002122,2]
[366759919,1750434652904,-2253.28,0.0002122,2]
[366759920,1750434652913,-791.08,0.0002122,2]
[366759921,1750434652923,-460.0,0.00021221,2]
[366759922,1750434652933,-411.7517878,0.00021224,2]
[366759923,1750434652942,-458.0,0.00021257,2]
[366759924,1750434652952,-1458.53,0.000213,2]
[366759925,1750434652963,-458.0,0.00021344,2]
[366759926,1750434652972,-151.0,0.000214,2]
[366759927,1750434652982,-1564.67337378,0.000214,5]
[366759928,1750434652992,-1564.67337357,0.000214,5]
[366759929,1750434653001,-1564.67337357,0.000214,5]
[366759930,1750434653011,-1564.67337357,0.000214,5]
[366759931,1750434653020,-1564.67337357,0.000214,5]
[366759932,1750434653030,-1564.67337357,0.000214,5]
[366759933,1750434653040,-1564.67337357,0.000214,5]
[366759934,1750434653050,-1564.67337357,0.000214,5]
[366759935,1750434653060,-767.24,0.0002149,2]
[366759936,1750434653070,-1824.29,0.0002149,2]
[366759937,1750434653079,-1494.94,0.0002149,2]
[366759938,1750434653089,-460.0,0.0002149,2]
[366759939,1750434653098,-460.0,0.0002149,2]
[366759940,1750434653107,-1381.71,0.0002149,2]
[366759941,1750434653117,-460.0,0.0002149,2]
[366759942,1750434653129,-1510.33,0.00021491,2]
[366759943,1750434653138,-1727.98,0.00021491,2]
[366759944,1750434653148,-518.78,0.00021491,2]
[366759945,1750434653157,-763.9,0.00021491,2]
[366759946,1750434653166,-839.66,0.00021491,2]
[366759947,1750434653176,-1294.25,0.00021491,2]
[366759948,1750434653185,-460.0,0.00021491,2]
[366759949,1750434653194,-460.0,0.00021491,2]
[366759950,1750434653204,-460.0,0.00021491,2]
[366759951,1750434653214,-460.0,0.00021491,2]
[366759952,1750434653223,-460.0,0.00021493,2]
[366759953,1750434653233,-517.83,0.00021493,2]
[366759954,1750434653242,-460.0,0.00021493,2]
[366759955,1750434653252,-460.48,0.00021493,2]
[366759956,1750434653261,-678.06,0.00021493,2]
[366759957,1750434653271,-460.0,0.00021493,2]
[366759958,1750434653281,-1121.3,0.00021493,2]
[366759959,1750434653290,-611.74,0.00021493,2]
[366759960,1750434653300,-460.0,0.00021493,2]
[366759961,1750434653309,-460.0,0.00021493,2]
[366759962,1750434653319,-617.93,0.00021493,2]
[366759963,1750434653328,-460.0,0.00021493,2]
[366759964,1750434653338,-460.0,0.00021493,2]
[366759965,1750434653348,-1032.5,0.00021493,2]
[366759966,1750434653357,-864.56,0.00021494,2]
[366759967,1750434653367,-992.41,0.00021494,2]
[366759968,1750434653378,-2253.28,0.00021494,2]
[366759969,1750434653388,-791.08,0.00021494,2]
[366759970,1750434653398,-460.0,0.00021495,2]
[366759971,1750434653407,-167.565203,0.00021498,2]
[366759972,1750434653416,-500.0,0.00021506,2]
[366759973,1750434653426,-1564.67337357,0.00021555,5]
[366759974,1750434653435,-2008.2556835,0.00021564,2]
[366759975,1750434653445,-411.7517878,0.00021594,2]
[366759976,1750434653454,-500.0,0.00021643,9]
[366759977,1750434653464,-879.52236616,0.00021682,2]
[366759978,1750434653473,-970.804,0.00021684,2]
[366759979,1750434653483,-2160.0,0.00021684,2]
[366759980,1750434653492,-654.0,0.00021684,2]
[366759981,1750434653502,-151.0,0.00021686,2]
[366759982,1750434653511,-458.0,0.00021697,2]
[366759983,1750434653521,-75601.21,0.000217,2]
[366759984,1750434653532,-458.0,0.00021702,2]
[366759985,1750434653543,-151.0,0.00021753,2]
[366759986,1750434653552,-153.1234548,0.00021753,2]
[366759987,1750434653562,-153.76937861,0.00021753,2]
[366759988,1750434653572,-152.79242028,0.00021753,2]
[366759989,1750434653582,-151.7088136,0.00021753,2]
[366759990,1750434653591,-151.0,0.00021753,2]
[366759991,1750434653601,-151.0,0.00021753,2]
[366759992,1750434653611,-270.76038803,0.00021753,2]
[366759993,1750434653621,-151.0,0.00021753,2]
[366759994,1750434653631,-151.0,0.00021753,2]
[366759995,1750434653641,-256.25859776,0.00021753,2]
[366759996,1750434653651,-151.0,0.00021753,2]
[366759997,1750434653661,-151.0,0.00021753,2]
[366759998,1750434653671,-151.0,0.00021753,2]
[366759999,1750434653682,-233.6328897,0.00021753,2]
[366760000,1750434653692,-151.0,0.00021753,2]
[366760001,1750434653702,-151.0,0.00021753,2]
[366760002,1750434653712,-151.0,0.00021753,2]
[366760003,1750434653722,-151.63381692,0.00021753,2]
[366760004,1750434653732,-193.9241166,0.00021753,2]
[366760005,1750434653741,-151.0,0.00021753,2]
[366760006,1750434653751,-151.71499628,0.00021753,2]
[366760007,1750434653760,-500.0,0.00021753,2]
[366760008,1750434653770,-151.38447872,0.00021753,2]
[366760009,1750434653780,-500.0,0.00021753,2]
[366760010,1750434653790,-1564.67337357,0.00021762,5]
[366760011,1750434653800,-767.24,0.00021764,2]
[366760012,1750434653810,-1824.29,0.00021764,2]
[366760013,1750434653820,-1494.94,0.00021764,2]
[366760014,1750434653831,-460.0,0.00021764,2]
[366760015,1750434653840,-460.0,0.00021764,2]
[366760016,1750434653851,-1381.71,0.00021764,2]
[366760017,1750434653860,-460.0,0.00021764,2]
[366760018,1750434653870,-1510.33,0.00021765,2]
[366760019,1750434653881,-1727.98,0.00021765,2]
[366760020,1750434653891,-518.78,0.00021765,2]
[366760021,1750434653901,-763.9,0.00021765,2]
[366760022,1750434653911,-839.66,0.00021765,2]
[366760023,1750434653921,-1294.25,0.00021765,2]
[366760024,1750434653931,-460.0,0.00021765,2]
[366760025,1750434653942,-460.0,0.00021765,2]
[366760026,1750434653951,-460.0,0.00021765,2]
[366760027,1750434653962,-460.0,0.00021765,2]
[366760028,1750434653971,-592.41,0.00021767,2]
[366760029,1750434653982,-517.83,0.00021767,2]
[366760030,1750434653992,-460.0,0.00021767,2]
[366760031,1750434654002,-460.48,0.00021767,2]
[366760032,1750434654011,-678.06,0.00021767,2]
[366760033,1750434654022,-416.34787524,0.00021767,2]
[366760034,1750434654032,-1121.3,0.00021767,2]
[366760035,1750434654042,-611.74,0.00021767,2]
[366760036,1750434654052,-460.0,0.00021767,2]
[366760037,1750434654062,-460.0,0.00021767,2]
[366760038,1750434654072,-617.93,0.00021767,2]
[366760039,1750434654082,-460.0,0.00021767,2]
[366760040,1750434654092,-460.0,0.00021767,2]
[366760041,1750434654102,-1032.5,0.00021767,2]
[366760042,1750434654112,-864.56,0.00021768,2]
[366760043,1750434654122,-992.41,0.00021768,2]
[366760044,1750434654132,-2253.28,0.00021768,2]
[366760045,1750434654141,-791.08,0.00021768,2]
[366760046,1750434654151,-460.0,0.00021769,2]
[366760047,1750434654160,-198.0,0.0002178,2]
[366760048,1750434654170,-151.0,0.0002178,2]
[366760049,1750434654180,-151.0,0.0002178,2]
[366760050,1750434654190,-151.0,0.0002178,2]
[366760051,1750434654200,-215.9720676,0.0002178,2]
[366760052,1750434654209,-151.0,0.0002178,2]
[366760053,1750434654219,-151.0,0.0002178,2]
[366760054,1750434654229,-151.0,0.0002178,2]
[366760055,1750434654238,-151.0,0.0002178,2]
[366760056,1750434654248,-500.0,0.0002178,2]
[366760057,1750434654258,-500.0,0.0002178,2]
[366760058,1750434654267,-652.27,0.000218,2]
[366760059,1750434654277,-151.0,0.00021808,2]
[366760060,1750434654287,-151.0,0.00021808,2]
[366760061,1750434654296,-151.0,0.00021808,2]
[366760062,1750434654306,-208.72823039,0.00021808,2]
[366760063,1750434654316,-151.0,0.00021808,2]
[366760064,1750434654326,-198.0,0.00021808,2]
[366760065,1750434654336,-151.0,0.00021808,2]
[366760066,1750434654345,-500.0,0.00021808,2]
[366760067,1750434654355,-500.0,0.00021808,2]
[366760068,1750434654364,-215.0738,0.00021833,2]
[366760069,1750434654374,-151.0,0.00021835,2]
[366760070,1750434654384,-151.0,0.00021835,2]
[366760071,1750434654394,-151.0,0.00021835,2]
[366760072,1750434654404,-151.0,0.00021835,2]
[366760073,1750434654413,-198.0,0.00021835,2]
[366760074,1750434654423,-500.0,0.00021835,2]
[366760075,1750434654432,-500.0,0.00021835,2]
[366760076,1750434654442,-411.7517878,0.00021849,2]
[366760077,1750434654451,-2047.09,0.00021858,2]
[366760078,1750434654609,-245.0,0.00021863,2]
[366760079,1750434654620,-242.33704988,0.00021863,2]
[366760080,1750434654630,-266.47550723,0.00021863,2]
[366760081,1750434654639,-151.0,0.00021863,2]
[366760082,1750434654649,-500.0,0.00021863,2]
[366760083,1750434654659,-245.0,0.0002189,2]
[366760084,1750434654668,-500.0,0.0002189,2]
[366760085,1750434654678,-846.05,0.000219,2]
[366760086,1750434654688,-151.0,0.00021917,2]
[366760087,1750434654698,-500.0,0.00021917,2]
[366760088,1750434654708,-500.0,0.00021917,2]
[366760089,1750434654718,-500.0,0.00021917,2]
[366760090,1750434654728,-500.0,0.00021917,2]
[366760091,1750434654738,-349.0,0.00021917,2]
[366760092,1750434654748,-166.0,0.00021918,2]
[366760093,1750434654758,-203.423626,0.00021918,2]
[366760094,1750434654768,-1564.67337357,0.00021969,6]
[366760095,1750434654777,-167.0,0.00022,4]
[366760096,1750434654787,-171.30129434,0.00022,4]
[366760097,1750434654797,-12546.90244252,0.00022,3]
[366760098,1750434654806,-523.92420239,0.00022,3]
[366760099,1750434654816,-160.0,0.00022,3]
[366760100,1750434654826,-846.08887863,0.00022,3]
[366760101,1750434654836,-458.0,0.00022002,2]
[366760102,1750434654846,-767.24,0.00022038,2]
[366760103,1750434654856,-1824.29,0.00022038,2]
[366760104,1750434654866,-1494.94,0.00022038,2]
[366760105,1750434654876,-364.9371266,0.00022038,2]
[366760106,1750434654888,-460.0,0.00022038,2]
[366760107,1750434654897,-1381.71,0.00022038,2]
[366760108,1750434654907,-239.91846251,0.00022038,2]
[366760109,1750434654917,-1510.33,0.00022039,2]
[366760110,1750434654928,-1727.98,0.00022039,2]
[366760111,1750434654938,-518.78,0.00022039,2]
[366760112,1750434654947,-763.9,0.00022039,2]
[366760113,1750434654957,-839.66,0.00022039,2]
[366760114,1750434654967,-1294.25,0.00022039,2]
[366760115,1750434654977,-460.0,0.00022039,2]
[366760116,1750434654987,-460.0,0.00022039,2]
[366760117,1750434654997,-460.0,0.00022039,2]
[366760118,1750434655007,-460.0,0.00022039,2]
[366760119,1750434655017,-517.83,0.00022041,2]
[366760120,1750434655027,-460.0,0.00022041,2]
[366760121,1750434655037,-460.48,0.00022041,2]
[366760122,1750434655047,-678.06,0.00022041,2]
[366760123,1750434655057,-1121.3,0.00022041,2]
[366760124,1750434655067,-611.74,0.00022041,2]
[366760125,1750434655076,-460.0,0.00022041,2]
[366760126,1750434655086,-460.0,0.00022041,2]
[366760127,1750434655095,-617.93,0.00022041,2]
[366760128,1750434655105,-460.0,0.00022041,2]
[366760129,1750434655115,-460.0,0.00022041,2]
[366760130,1750434655124,-1032.5,0.00022041,2]
[366760131,1750434655135,-864.56,0.00022042,2]
[366760132,1750434655144,-992.41,0.00022042,2]
[366760133,1750434655154,-2253.28,0.00022042,2]
[366760134,1750434655163,-791.08,0.00022042,2]
[366760135,1750434655173,-460.0,0.00022043,2]
[366760136,1750434655182,-458.0,0.00022058,2]
[366760137,1750434655192,-160.0,0.00022135,2]
[366760138,1750434655201,-411.7517878,0.00022135,2]
[366760139,1750434655211,-1000.0,0.00022146,5]
[366760140,1750434655221,-2781.24,0.00022168,2]
[366760141,1750434655230,-1564.67337357,0.00022176,6]
[366760142,1750434655239,-500.0,0.00022191,10]
[366760143,1750434655249,-193.89639507,0.000222,69]
[366760144,1750434655258,-458.0,0.0002221,2]
[366760145,1750434655268,-1458.53,0.000223,7]
[366760146,1750434655278,-458.0,0.00022301,2]
[366760147,1750434655287,-411.7517878,0.00022306,2]
[366760148,1750434655297,-767.24,0.00022312,2]
[366760149,1750434655307,-1824.29,0.00022312,2]
[366760150,1750434655316,-1494.94,0.00022312,2]
[366760151,1750434655325,-460.0,0.00022312,2]
[366760152,1750434655335,-1381.71,0.00022312,2]
[366760153,1750434655345,-1510.33,0.00022313,2]
[366760154,1750434655354,-1727.98,0.00022313,2]
[366760155,1750434655364,-518.78,0.00022313,2]
[366760156,1750434655373,-763.9,0.00022313,2]
[366760157,1750434655384,-839.66,0.00022313,2]
[366760158,1750434655394,-1294.25,0.00022313,2]
[366760159,1750434655403,-460.0,0.00022313,2]
[366760160,1750434655413,-460.0,0.00022313,2]
[366760161,1750434655422,-460.0,0.00022313,2]
[366760162,1750434655432,-365.55,0.00022313,2]
[366760163,1750434655442,-517.83,0.00022315,2]
[366760164,1750434655452,-460.0,0.00022315,2]
[366760165,1750434655461,-460.48,0.00022315,2]
[366760166,1750434655471,-678.06,0.00022315,2]
[366760167,1750434655481,-1121.3,0.00022315,2]
[366760168,1750434655490,-611.74,0.00022315,2]
[366760169,1750434655500,-460.0,0.00022315,2]
[366760170,1750434655509,-249.7926403,0.00022315,2]
[366760171,1750434655519,-617.93,0.00022315,2]
[366760172,1750434655530,-460.0,0.00022315,2]
[366760173,1750434655541,-460.0,0.00022315,2]
[366760174,1750434655552,-1032.5,0.00022315,2]
[366760175,1750434655562,-864.56,0.00022316,2]
[366760176,1750434655573,-992.41,0.00022316,2]
[366760177,1750434655583,-2253.28,0.00022316,2]
[366760178,1750434655593,-791.08,0.00022316,2]
[366760179,1750434655603,-460.0,0.00022317,2]
[366760180,1750434655614,-458.0,0.00022332,2]
[366760181,1750434655624,-458.0,0.00022343,2]
[366760182,1750434655636,-600.0,0.00022356,2]
[366760183,1750434655646,-1564.67337357,0.00022383,7]